[Event "3rd Memorial Warakomska 2019"]
[Site "Suwalki"]
[Date "2019.08.07"]
[Round "3.9"]
[White "Licznerski, Lukasz"]
[Black "Matviishen, Viktor"]
[Result "1-0"]
[ECO "C91"]
[WhiteElo "2328"]
[BlackElo "2495"]
[Annotator "ChessBase"]
[PlyCount "133"]
[EventDate "2019.08.05"]
[EventType "swiss"]
[EventCountry "POL"]
[SourceTitle "playchess.com"]
[Source "ChessBase"]
[SourceQuality "1"]
[TimeControl "40/5400+30:1800+30"]

1. e4 {[%emt 0:04:53]} e5 {[%emt 0:00:00]} 2. Nf3 {[%emt 0:00:26]} Nc6 {[%emt 0:00:00]} 3. Bb5 {[%emt 0:00:25]} a6 {[%emt 0:00:00]} 4. Ba4 {[%emt 0:00:11]} Nf6 {[%emt 0:00:07]} 5. O-O {[%emt 0:00:20]} b5 {[%emt 0:01:48]} 6. Bb3 {[%emt 0:00:11]} Be7 {[%emt 0:00:03]} 7. Re1 {[%emt 0:01:30]} O-O {[%emt 0:01:03]} 8. c3 {[%emt 0:02:49]} d6 {[%emt 0:00:09]} 9. d4 {[%emt 0:00:16]} Bg4 {[%emt 0:00:40]} 10. d5 {[%emt 0:00:16]} Na5 {[%emt 0:00:44]} 11. Bc2 {[%emt 0:00:04]} c6 {[%emt 0:01:11]} 12. h3 {[%emt 0:00:10]} Bh5 {[%emt 0:06:14]} 13. dxc6 {[%emt 0:03:43]} Qc7 {[%emt 0:06:37]} 14. Nbd2 {[%emt 0:03:12]} Qxc6 {[%emt 0:02:22]} 15. Nf1 {[%emt 0:00:50]} Nc4 {[%emt 0:01:50]} 16. Ng3 {[%emt 0:01:57]} Bg6 {[%emt 0:00:31]} 17. Nh4 {[%emt 0:15:31]} Rfe8 {[%emt 0:01:12]} 18. Ngf5 {[%emt 0:09:36]} Bf8 {[%emt 0:01:22]} 19. Nxg6 {[%emt 0:02:22]} hxg6 {[%emt 0:00:16]} 20. Ne3 {[%emt 0:00:13]} Nxe3 {[%emt 0:05:35]} 21. Rxe3 {[%emt 0:00:34]} d5 {[%emt 0:01:48]} 22. exd5 {[%emt 0:04:28]} Nxd5 {[%emt 0:08:30]} 23. Qf3 {[%emt 0:03:53]} Rad8 {[%emt 0:01:29]} 24. Bb3 {[%emt 0:03:56]} Qd7 {[%emt 0:20:59]} 25. Re2 {[%emt 0:03:21]} Nf6 {[%emt 0:00:11]} 26. Bg5 {[%emt 0:20:21]} e4 {[%emt 0:05:36]} 27. Qg3 {[%emt 0:01:43]} Qf5 {[%emt 0:01:45]} 28. Rae1 {[%emt 0:01:00]} Re5 {[%emt 0:16:39]} 29. Bxf6 gxf6 {[%emt 0:00:01]} 30. Bc2 {[%emt 0:14:30]} Rde8 {[%emt 0:02:43]} 31. Qh4 {[%emt 0:00:24]} g5 {[%emt 0:06:03]} 32. Qg4 {[%emt 0:00:45]} Qxg4 {[%emt 0:02:13]} 33. hxg4 {[%emt 0:00:01]} e3 {[%emt 0:01:33]} 34. Rxe3 {[%emt 0:00:54]} Rxe3 {[%emt 0:00:05]} 35. fxe3 {[%emt 0:00:05]} Rd8 {[%emt 0:01:02]} 36. Re2 {[%emt 0:00:18]} b4 {[%emt 0:01:09]} 37. c4 {[%emt 0:02:22]} Bc5 {[%emt 0:00:05]} 38. Kf2 {[%emt 0:00:16]} Kg7 {[%emt 0:01:18]} 39. Kf3 {[%emt 0:00:19]} Kf8 {[%emt 0:01:34]} 40. Ba4 {[%emt 0:00:00]} Ke7 {[%emt 0:00:00]} 41. Ke4 {[%emt 0:03:59]} Rd6 {[%emt 0:01:18]} 42. Kf3 {[%emt 0:04:08]} a5 {[%emt 0:01:55]} 43. Bc2 {[%emt 0:00:52]} Rd8 {[%emt 0:00:33]} 44. b3 {[%emt 0:02:55]} Rh8 {[%emt 0:03:59]} 45. Rd2 {[%emt 0:00:46]} Rd8 {[%emt 0:00:04]} 46. Re2 {[%emt 0:00:08]} Rh8 {[%emt 0:00:05]} 47. Be4 {[%emt 0:05:28]} Rh1 {[%emt 0:01:19]} 48. Rd2 {[%emt 0:00:56]} Re1 {[%emt 0:01:54]} 49. Rd3 {[%emt 0:00:25]} Rf1+ {[%emt 0:01:57]} 50. Ke2 {[%emt 0:00:12]} Ra1 {[%emt 0:00:02]} 51. Rd5 {[%emt 0:04:02]} Rxa2+ {[%emt 0:01:02]} 52. Kf3 {[%emt 0:00:38]} Bd6 {[%emt 0:01:42]} 53. c5 {[%emt 0:00:15]} Be5 {[%emt 0:00:03]} 54. c6 {[%emt 0:00:53]} Ra1 {[%emt 0:03:38]} 55. Rd7+ {[%emt 0:00:49]} Ke8 {[%emt 0:00:04]} 56. Bd5 {[%emt 0:00:55]} Rc1 {[%emt 0:00:15]} 57. Bxf7+ {[%emt 0:00:14]} Kf8 {[%emt 0:00:03]} 58. Bc4 {[%emt 0:02:37]} a4 {[%emt 0:03:24]} 59. c7 {[%emt 0:01:47]} Bxc7 {[%emt 0:00:04]} 60. Rxc7 {[%emt 0:00:05]} a3 {[%emt 0:00:23]} 61. Ra7 {[%emt 0:00:31]} Ke8 {[%emt 0:01:06]} 62. Ke4 {[%emt 0:01:54]} Rd1 {[%emt 0:00:48]} 63. Kf5 {[%emt 0:03:01]} Kd8 {[%emt 0:00:19]} 64. Kxf6 {[%emt 0:00:48]} Re1 {[%emt 0:02:27]} 65. Be6 {[%emt 0:01:27]} Rxe3 {[%emt 0:02:27]} 66. Rd7+ {[%emt 0:00:06]} Ke8 {[%emt 0:00:02]} 67. Rd4 {[%emt 0:00:20]} 1-0

[Event "3rd Memorial Warakomska 2019"]
[Site "Suwalki"]
[Date "2019.08.07"]
[Round "3.10"]
[White "Zylka, Stanislaw"]
[Black "Zakhartsov, Vladimir"]
[Result "0-1"]
[ECO "E63"]
[WhiteElo "2308"]
[BlackElo "2493"]
[Annotator "ChessBase"]
[PlyCount "96"]
[EventDate "2019.08.05"]
[EventType "swiss"]
[EventCountry "POL"]
[SourceTitle "playchess.com"]
[Source "ChessBase"]
[SourceQuality "1"]
[TimeControl "40/5400+30:1800+30"]

1. d4 {[%emt 0:00:00]} Nf6 {[%emt 0:11:00]} 2. Nf3 {[%emt 0:00:00]} g6 {[%emt 0:00:50]} 3. c4 {[%emt 0:00:00]} Bg7 {[%emt 0:00:07]} 4. g3 {[%emt 0:00:02]} O-O {[%emt 0:00:31]} 5. Bg2 {[%emt 0:00:06]} d6 {[%emt 0:00:14]} 6. O-O {[%emt 0:00:08]} Nc6 {[%emt 0:00:19]} 7. Nc3 {[%emt 0:00:08]} a6 {[%emt 0:00:36]} 8. Qc2 {[%emt 0:00:12]} Rb8 {[%emt 0:00:32]} 9. Rd1 {[%emt 0:00:09]} Bd7 {[%emt 0:01:27]} 10. e4 {[%emt 0:00:25]} Qc8 {[%emt 0:02:32]} 11. a3 {[%emt 0:15:47]} Bg4 {[%emt 0:05:58]} 12. Be3 {[%emt 0:04:24]} Nd7 {[%emt 0:00:42]} 13. h3 {[%emt 0:13:08]} Bxf3 {[%emt 0:00:16]} 14. Bxf3 {[%emt 0:00:06]} e5 {[%emt 0:00:12]} 15. Ne2 {[%emt 0:00:22]} exd4 {[%emt 0:02:41]} 16. Nxd4 {[%emt 0:01:02]} Nc5 {[%emt 0:01:40]} 17. Bg2 {[%emt 0:03:48]} Re8 {[%emt 0:04:02]} 18. Rab1 {[%emt 0:02:28]} Nxd4 {[%emt 0:06:40]} 19. Bxd4 {[%emt 0:00:33]} Bxd4 {[%emt 0:00:38]} 20. Rxd4 {[%emt 0:00:08]} Qe6 {[%emt 0:00:52]} 21. b4 {[%emt 0:04:41]} Qf6 {[%emt 0:00:18]} 22. Rd5 {[%emt 0:02:10]} Ne6 {[%emt 0:00:54]} 23. f4 {[%emt 0:03:38]} Qe7 {[%emt 0:05:29]} 24. Qd2 {[%emt 0:04:11]} Nf8 {[%emt 0:03:58]} 25. Rd1 {[%emt 0:03:36]} h5 {[%emt 0:00:23]} 26. Qd4 {[%emt 0:10:16]} h4 {[%emt 0:04:24]} 27. g4 {[%emt 0:03:37]} Ne6 {[%emt 0:03:38]} 28. Qf2 {[%emt 0:00:30]} Qf6 {[%emt 0:00:33]} 29. Rf1 {[%emt 0:02:53]} Re7 {[%emt 0:08:19]} 30. Qd2 {[%emt 0:09:28]} Nf8 {[%emt 0:01:27]} 31. g5 {[%emt 0:01:18]} Qh8 {[%emt 0:00:09]} 32. Kh1 {[%emt 0:02:16]} Rbe8 {[%emt 0:00:24]} 33. a4 {[%emt 0:01:50]} Ne6 {[%emt 0:02:29]} 34. a5 {[%emt 0:05:45]} Ng7 {[%emt 0:00:16]} 35. Qf2 {[%emt 0:00:13]} Nh5 {[%emt 0:00:27]} 36. Qxh4 {[%emt 0:03:04]} Qc3 {[%emt 0:00:06]} 37. Bf3 {[%emt 0:04:08]} Rxe4 {[%emt 0:05:43]} 38. Bxh5 {[%emt 0:00:12]} Qxc4 {[%emt 0:00:37]} 39. Rdd1 {[%emt 0:01:18]} gxh5 {[%emt 0:00:07]} 40. Qxh5 {[%emt 0:00:00]} Rxf4 {[%emt 0:00:00]} 41. Rxf4 {[%emt 0:10:06]} Qxf4 {[%emt 0:02:03]} 42. Rg1 {[%emt 0:01:44]} Qe4+ {[%emt 0:01:49]} 43. Rg2 {[%emt 0:00:13]} Qf5 {[%emt 0:02:37]} 44. Qh4 {[%emt 0:01:44]} Re3 {[%emt 0:00:59]} 45. Kh2 {[%emt 0:02:48]} Qe5+ {[%emt 0:00:46]} 46. Kh1 {[%emt 0:00:11]} Re1+ {[%emt 0:00:08]} 47. Rg1 {[%emt 0:00:07]} Qd5+ {[%emt 0:00:03]} 48. Kh2 {[%emt 0:00:16]} Re2+ {[%emt 0:00:02]} 0-1

[Event "3rd Memorial Warakomska 2019"]
[Site "Suwalki"]
[Date "2019.08.07"]
[Round "3.11"]
[White "Pavlov, Sergey"]
[Black "Wiewiora, Eneasz"]
[Result "1-0"]
[ECO "A16"]
[WhiteElo "2486"]
[BlackElo "2344"]
[Annotator "ChessBase"]
[PlyCount "69"]
[EventDate "2019.08.05"]
[EventType "swiss"]
[EventCountry "POL"]
[SourceTitle "playchess.com"]
[Source "ChessBase"]
[SourceQuality "1"]
[TimeControl "40/5400+30:1800+30"]

1. c4 {[%emt 0:00:00]} Nf6 {[%emt 0:00:44]} 2. Nc3 {[%emt 0:00:51]} d5 {[%emt 0:00:06]} 3. cxd5 {[%emt 0:00:43]} Nxd5 {[%emt 0:00:06]} 4. g3 {[%emt 0:00:26]} g6 {[%emt 0:04:09]} 5. Bg2 {[%emt 0:00:15]} Nb6 {[%emt 0:00:06]} 6. Nf3 {[%emt 0:01:54]} Bg7 {[%emt 0:00:05]} 7. d4 {[%emt 0:00:23]} O-O {[%emt 0:00:07]} 8. O-O {[%emt 0:00:42]} Nc6 {[%emt 0:00:05]} 9. e3 {[%emt 0:00:49]} e5 {[%emt 0:08:18]} 10. d5 {[%emt 0:02:19]} Nb4 {[%emt 0:12:02]} 11. e4 {[%emt 0:06:17]} c6 {[%emt 0:00:12]} 12. Qb3 {[%emt 0:18:12]} Na6 {[%emt 0:02:23]} 13. Bg5 {[%emt 0:01:17]} Qe8 {[%emt 0:10:27]} 14. Be3 {[%emt 0:08:33]} c5 {[%emt 0:11:19]} 15. a4 {[%emt 0:06:19]} f5 {[%emt 0:13:36]} 16. a5 {[%emt 0:09:12]} Nd7 {[%emt 0:08:36]} 17. d6+ {[%emt 0:09:35]} Kh8 {[%emt 0:00:18]} 18. Nd5 {[%emt 0:00:44]} Nf6 {[%emt 0:04:38]} 19. exf5 {[%emt 0:02:46]} Nxd5 {[%emt 0:02:25]} 20. Qxd5 {[%emt 0:00:10]} e4 {[%emt 0:03:18]} 21. f6 {[%emt 0:03:53]} Bxf6 {[%emt 0:04:12]} 22. Ng5 {[%emt 0:01:36]} Bxb2 {[%emt 0:00:07]} 23. Rad1 {[%emt 0:02:42]} Nb4 {[%emt 0:04:51]} 24. d7 {[%emt 0:03:30]} Nxd5 {[%emt 0:00:21]} 25. dxe8=Q {[%emt 0:00:11]} Rxe8 {[%emt 0:00:05]} 26. Rxd5 {[%emt 0:00:12]} b6 {[%emt 0:01:12]} 27. Rb1 {[%emt 0:02:11]} Bg7 {[%emt 0:00:05]} 28. Nf7+ {[%emt 0:01:57]} Kg8 {[%emt 0:00:01]} 29. Nd6 {[%emt 0:00:17]} Re7 {[%emt 0:01:27]} 30. Bxe4 {[%emt 0:03:14]} Rxe4 {[%emt 0:03:04]} 31. Nxe4 {[%emt 0:00:38]} Bb7 {[%emt 0:00:32]} 32. Rbd1 {[%emt 0:01:00]} Bxd5 {[%emt 0:00:22]} 33. Rxd5 {[%emt 0:00:08]} Rc8 {[%emt 0:01:06]} 34. Rd7 {[%emt 0:03:02]} c4 {[%emt 0:00:31]} 35. Nd6 {[%emt 0:00:34]} 1-0

[Event "3rd Memorial Warakomska 2019"]
[Site "Suwalki"]
[Date "2019.08.07"]
[Round "3.12"]
[White "Kulon, Klaudia"]
[Black "Harsha Bharathakoti"]
[Result "0-1"]
[ECO "B26"]
[WhiteElo "2331"]
[BlackElo "2486"]
[Annotator "ChessBase"]
[PlyCount "84"]
[EventDate "2019.08.05"]
[EventType "swiss"]
[EventCountry "POL"]
[SourceTitle "playchess.com"]
[Source "ChessBase"]
[SourceQuality "1"]
[TimeControl "40/5400+30:1800+30"]

1. e4 {[%emt 0:04:50]} c5 {[%emt 0:01:15]} 2. Nc3 {[%emt 0:00:22]} Nc6 {[%emt 0:01:47]} 3. g3 {[%emt 0:00:48]} g6 {[%emt 0:00:22]} 4. Bg2 {[%emt 0:00:04]} Bg7 {[%emt 0:00:09]} 5. d3 {[%emt 0:00:06]} d6 {[%emt 0:00:06]} 6. Be3 {[%emt 0:00:13]} e5 {[%emt 0:00:47]} 7. Qd2 {[%emt 0:00:24]} Nge7 {[%emt 0:00:04]} 8. Bh6 {[%emt 0:01:31]} Bxh6 {[%emt 0:00:21]} 9. Qxh6 {[%emt 0:00:02]} Nd4 {[%emt 0:00:05]} 10. O-O-O {[%emt 0:00:47]} b5 {[%emt 0:33:47]} 11. Qg7 {[%emt 0:13:29]} Rf8 {[%emt 0:00:32]} 12. Qxh7 {[%emt 0:01:13]} b4 {[%emt 0:02:32]} 13. Nd5 {[%emt 0:10:32]} Nxd5 {[%emt 0:00:31]} 14. exd5 {[%emt 0:00:02]} Nf5 {[%emt 0:12:56]} 15. Nf3 {[%emt 0:23:36]} Bd7 {[%emt 0:28:39]} 16. Kb1 {[%emt 0:04:18]} Qf6 {[%emt 0:03:08]} 17. g4 {[%emt 0:01:15]} O-O-O {[%emt 0:02:59]} 18. g5 {[%emt 0:07:54]} Qe7 {[%emt 0:00:12]} 19. Qh3 {[%emt 0:00:38]} Ne3 {[%emt 0:04:14]} 20. Qg3 {[%emt 0:00:05]} Nxd1 {[%emt 0:00:05]} 21. Rxd1 {[%emt 0:00:01]} f5 {[%emt 0:00:08]} 22. Bf1 {[%emt 0:08:12]} Rh8 {[%emt 0:01:55]} 23. Re1 {[%emt 0:01:31]} Qf7 {[%emt 0:01:11]} 24. d4 {[%emt 0:02:17]} f4 {[%emt 0:00:22]} 25. Qg1 {[%emt 0:00:01]} Qxd5 {[%emt 0:01:24]} 26. Nd2 {[%emt 0:01:09]} cxd4 {[%emt 0:01:05]} 27. Bg2 {[%emt 0:00:38]} Qb5 {[%emt 0:00:08]} 28. Ne4 {[%emt 0:01:51]} Bc6 {[%emt 0:00:30]} 29. Bf1 {[%emt 0:00:34]} Qb6 {[%emt 0:01:33]} 30. Nf6 {[%emt 0:00:11]} Qc7 {[%emt 0:01:10]} 31. Bd3 {[%emt 0:01:23]} Qf7 {[%emt 0:00:23]} 32. b3 {[%emt 0:00:47]} Kb8 {[%emt 0:00:13]} 33. Kb2 {[%emt 0:01:26]} Rc8 {[%emt 0:00:28]} 34. Ra1 {[%emt 0:00:15]} Bb7 {[%emt 0:01:17]} 35. a3 {[%emt 0:01:21]} Qc7 {[%emt 0:00:38]} 36. axb4 {[%emt 0:00:41]} Rh3 {[%emt 0:00:30]} 37. Bxg6 {[%emt 0:05:52]} e4 {[%emt 0:00:16]} 38. c4 {[%emt 0:01:41]} Rxb3+ {[%emt 0:00:35]} 39. Kxb3 {[%emt 0:00:53]} Qxc4+ {[%emt 0:00:06]} 40. Ka3 {[%emt 0:00:00]} Qd3+ {[%emt 0:00:00]} 41. Ka4 {[%emt 0:00:27]} Qa6+ {[%emt 0:00:49]} 42. Kb3 {[%emt 0:00:05]} Rc3+ {[%emt 0:00:04]} 0-1

[Event "3rd Memorial Warakomska 2019"]
[Site "Suwalki"]
[Date "2019.08.07"]
[Round "3.13"]
[White "Janik, Igor"]
[Black "Efroimski, Marsel"]
[Result "1-0"]
[ECO "D31"]
[WhiteElo "2495"]
[BlackElo "2318"]
[Annotator "ChessBase"]
[PlyCount "67"]
[EventDate "2019.08.05"]
[EventType "swiss"]
[EventCountry "POL"]
[SourceTitle "playchess.com"]
[Source "ChessBase"]
[SourceQuality "1"]
[TimeControl "40/5400+30:1800+30"]

1. d4 {[%emt 0:00:00]} d5 {[%emt 0:04:04]} 2. c4 {[%emt 0:00:00]} e6 {[%emt 0:00:08]} 3. Nc3 {[%emt 0:00:00]} a6 {[%emt 0:02:06]} 4. cxd5 {[%emt 0:00:15]} exd5 {[%emt 0:00:05]} 5. Nf3 {[%emt 0:00:22]} h6 {[%emt 0:00:36]} 6. Bf4 {[%emt 0:00:14]} Nf6 {[%emt 0:00:18]} 7. e3 {[%emt 0:00:31]} Bd6 {[%emt 0:00:57]} 8. Be5 {[%emt 0:00:16]} c6 {[%emt 0:05:56]} 9. Bd3 {[%emt 0:00:39]} Qe7 {[%emt 0:01:00]} 10. Qc2 {[%emt 0:03:15]} Nbd7 {[%emt 0:00:20]} 11. Bxd6 {[%emt 0:00:25]} Qxd6 {[%emt 0:00:02]} 12. O-O {[%emt 0:00:44]} O-O {[%emt 0:00:48]} 13. Rab1 {[%emt 0:01:35]} a5 {[%emt 0:07:10]} 14. a3 {[%emt 0:01:36]} b5 {[%emt 0:06:00]} 15. Rfc1 {[%emt 0:03:37]} Bb7 {[%emt 0:02:18]} 16. Ne2 {[%emt 0:08:12]} Nb6 {[%emt 0:09:35]} 17. Ng3 {[%emt 0:10:43]} a4 {[%emt 0:03:03]} 18. Nf5 {[%emt 0:05:45]} Qe6 {[%emt 0:02:05]} 19. Ne5 {[%emt 0:00:26]} Nc4 {[%emt 0:04:26]} 20. f4 {[%emt 0:00:27]} c5 {[%emt 0:14:02]} 21. Qf2 {[%emt 0:14:34]} Ne4 {[%emt 0:05:57]} 22. Bxe4 {[%emt 0:00:04]} dxe4 {[%emt 0:00:17]} 23. g4 {[%emt 0:01:15]} Nxe5 {[%emt 0:05:52]} 24. dxe5 {[%emt 0:00:20]} c4 {[%emt 0:04:53]} 25. Qg3 {[%emt 0:03:32]} Rad8 {[%emt 0:02:47]} 26. Nd6 {[%emt 0:01:18]} Bc6 {[%emt 0:07:56]} 27. f5 {[%emt 0:01:03]} Qd7 {[%emt 0:04:02]} 28. Rd1 {[%emt 0:00:32]} Qa7 {[%emt 0:01:45]} 29. f6 {[%emt 0:02:48]} g6 {[%emt 0:00:58]} 30. Nf5 {[%emt 0:01:32]} Kh7 {[%emt 0:01:20]} 31. Nxh6 {[%emt 0:00:32]} Rd3 32. Rxd3 {[%emt 0:01:06]} exd3 {[%emt 0:02:54]} 33. Nf5 {[%emt 0:00:05]} Rh8 {[%emt 0:01:11]} 34. Ne7 {[%emt 0:00:15]} 1-0

[Event "3rd Memorial Warakomska 2019"]
[Site "Suwalki"]
[Date "2019.08.07"]
[Round "3.14"]
[White "Ashwath, R.."]
[Black "Karthik Venkataraman"]
[Result "1/2-1/2"]
[ECO "D74"]
[WhiteElo "2365"]
[BlackElo "2480"]
[Annotator "ChessBase"]
[PlyCount "29"]
[EventDate "2019.08.05"]
[EventType "swiss"]
[EventCountry "POL"]
[SourceTitle "playchess.com"]
[Source "ChessBase"]
[SourceQuality "1"]
[TimeControl "40/5400+30:1800+30"]

1. d4 {[%emt 0:00:21]} Nf6 {[%emt 0:00:00]} 2. c4 {[%emt 0:00:08]} g6 {[%emt 0:00:00]} 3. g3 {[%emt 0:00:23]} Bg7 {[%emt 0:00:00]} 4. Bg2 {[%emt 0:00:05]} d5 {[%emt 0:00:14]} 5. cxd5 {[%emt 0:03:25]} Nxd5 {[%emt 0:00:06]} 6. Nf3 {[%emt 0:00:53]} O-O {[%emt 0:00:09]} 7. O-O {[%emt 0:00:39]} Nc6 {[%emt 0:00:04]} 8. Nc3 {[%emt 0:02:16]} Nxc3 {[%emt 0:00:55]} 9. bxc3 {[%emt 0:00:04]} e5 {[%emt 0:00:06]} 10. dxe5 {[%emt 0:08:54]} Nxe5 {[%emt 0:00:35]} 11. Nxe5 {[%emt 0:00:20]} Bxe5 {[%emt 0:01:04]} 12. Bh6 {[%emt 0:00:57]} Qxd1 {[%emt 0:08:15]} 13. Rfxd1 {[%emt 0:01:11]} Re8 {[%emt 0:01:00]} 14. Rab1 {[%emt 0:01:49]} c6 {[%emt 0:13:35]} 15. c4 {[%emt 0:08:03]} 1/2-1/2

[Event "3rd Memorial Warakomska 2019"]
[Site "Suwalki"]
[Date "2019.08.07"]
[Round "3.15"]
[White "Cukrowski, Filip"]
[Black "Koziol, Kamil"]
[Result "1-0"]
[ECO "B50"]
[WhiteElo "2421"]
[BlackElo "2307"]
[Annotator "NA"]
[PlyCount "77"]
[EventDate "2019.08.05"]
[EventType "swiss"]
[EventCountry "POL"]
[SourceTitle "playchess.com"]
[Source "ChessBase"]
[SourceQuality "1"]
[TimeControl "40/5400+30:1800+30"]

1. e4 {[%emt 0:05:34]} c5 {[%emt 0:00:29]} 2. Nf3 {[%emt 0:00:06]} d6 {[%emt 0:00:58]} 3. c3 {[%emt 0:00:06]} Nf6 {[%emt 0:00:58]} 4. Be2 {[%emt 0:00:06]} Nc6 {[%emt 0:09:17]} 5. d4 {[%emt 0:04:56]} e6 {[%emt 0:06:01]} 6. Nbd2 {[%emt 0:12:15]} Be7 {[%emt 0:02:05]} 7. a3 {[%emt 0:05:54]} O-O {[%emt 0:02:32]} 8. O-O {[%emt 0:00:08]} cxd4 {[%emt 0:09:30]} 9. cxd4 {[%emt 0:00:51]} d5 {[%emt 0:00:30]} 10. e5 {[%emt 0:00:08]} Ne4 {[%emt 0:00:59]} 11. Bd3 {[%emt 0:01:26]} Nxd2 {[%emt 0:05:00]} 12. Bxd2 {[%emt 0:00:52]} f5 {[%emt 0:04:30]} 13. exf6 {[%emt 0:10:58]} Bxf6 {[%emt 0:00:54]} 14. Bc3 {[%emt 0:00:56]} Bd7 {[%emt 0:10:08]} 15. Re1 {[%emt 0:01:01]} g6 {[%emt 0:04:36]} 16. Qe2 {[%emt 0:09:03]} Bg7 {[%emt 0:09:02]} 17. Qe3 {[%emt 0:04:00]} Qf6 $14 {[%emt 0:02:42]} 18. Bb5 {[%emt 0:01:26]} Qf4 {[%emt 0:03:55]} 19. Qxf4 {[%emt 0:06:17]} Rxf4 {[%emt 0:00:08]} 20. Bxc6 {[%emt 0:00:04]} bxc6 {[%emt 0:00:36]} 21. Bb4 {[%emt 0:00:54]} Bxd4 {[%emt 0:06:04]} 22. Bd2 {[%emt 0:08:36]} Rxf3 {[%emt 0:01:24]} 23. gxf3 {[%emt 0:00:10]} Bxb2 {[%emt 0:01:47]} 24. Rab1 {[%emt 0:01:18]} Bd4 {[%emt 0:04:48]} 25. Rb7 {[%emt 0:06:49]} Bc8 {[%emt 0:02:49]} 26. Rc7 {[%emt 0:00:05]} c5 {[%emt 0:00:54]} 27. Be3 {[%emt 0:00:11]} Bc3 {[%emt 0:01:17]} 28. Rc1 {[%emt 0:00:13]} d4 {[%emt 0:00:36]} 29. Bh6 {[%emt 0:03:34]} e5 {[%emt 0:07:18]} 30. Rb1 {[%emt 0:02:28]} c4 {[%emt 0:01:09]} 31. Rg7+ {[%emt 0:00:46]} Kh8 {[%emt 0:00:06]} 32. Rf7 {[%emt 0:02:11]} Be6 {[%emt 0:00:28]} 33. Re7 {[%emt 0:01:14]} Bd5 {[%emt 0:01:07]} 34. Rb5 {[%emt 0:03:27]} Bxf3 {[%emt 0:01:43]} 35. Rbxe5 {[%emt 0:00:06]} Bc6 {[%emt 0:00:34]} 36. Rc5 {[%emt 0:01:20]} Be8 {[%emt 0:00:32]} 37. Rxc4 {[%emt 0:03:17]} Bb2 {[%emt 0:00:26]} 38. Rb7 {[%emt 0:00:33]} Bxa3 {[%emt 0:00:33]} 39. Rcc7 {[%emt 0:00:10]} 1-0

[Event "3rd Memorial Warakomska 2019"]
[Site "Suwalki"]
[Date "2019.08.07"]
[Round "3.16"]
[White "Kubicka, Anna"]
[Black "Dhulipalla Bala Chandra Prasad"]
[Result "1/2-1/2"]
[ECO "C95"]
[WhiteElo "2202"]
[BlackElo "2419"]
[Annotator "ChessBase"]
[PlyCount "51"]
[EventDate "2019.08.05"]
[EventType "swiss"]
[EventCountry "POL"]
[SourceTitle "playchess.com"]
[Source "ChessBase"]
[SourceQuality "1"]
[TimeControl "40/5400+30:1800+30"]

1. e4 {[%emt 0:00:00]} e5 {[%emt 0:00:00]} 2. Nf3 {[%emt 0:00:00]} Nc6 {[%emt 0:00:00]} 3. Bb5 {[%emt 0:00:32]} a6 {[%emt 0:00:00]} 4. Ba4 {[%emt 0:00:04]} Nf6 {[%emt 0:00:00]} 5. O-O {[%emt 0:00:11]} Be7 {[%emt 0:00:00]} 6. Re1 {[%emt 0:00:05]} b5 {[%emt 0:00:00]} 7. Bb3 {[%emt 0:00:04]} d6 {[%emt 0:00:00]} 8. c3 {[%emt 0:00:06]} O-O {[%emt 0:00:04]} 9. h3 {[%emt 0:00:21]} Nb8 {[%emt 0:00:05]} 10. d4 {[%emt 0:00:07]} Nbd7 {[%emt 0:00:02]} 11. c4 {[%emt 0:00:12]} c6 {[%emt 0:00:23]} 12. Qc2 {[%emt 0:00:16]} Bb7 {[%emt 0:03:40]} 13. Nc3 {[%emt 0:00:05]} Rc8 {[%emt 0:11:07]} 14. dxe5 {[%emt 0:02:25]} Nxe5 {[%emt 0:16:17]} 15. Nxe5 {[%emt 0:00:05]} dxe5 {[%emt 0:00:03]} 16. Be3 {[%emt 0:01:08]} Nd7 {[%emt 0:03:01]} 17. Rad1 {[%emt 0:06:39]} Qc7 {[%emt 0:03:14]} 18. a3 {[%emt 0:03:30]} b4 {[%emt 0:14:17]} 19. axb4 {[%emt 0:02:48]} Bxb4 {[%emt 0:00:17]} 20. Re2 {[%emt 0:03:17]} a5 {[%emt 0:00:08]} 21. Na2 {[%emt 0:02:35]} c5 {[%emt 0:02:10]} 22. f3 {[%emt 0:01:55]} Nb6 {[%emt 0:17:39]} 23. Nc3 {[%emt 0:20:14]} Bc6 {[%emt 0:03:08]} 24. Nd5 {[%emt 0:04:26]} Bxd5 {[%emt 0:01:02]} 25. exd5 {[%emt 0:01:42]} Qd6 {[%emt 0:01:05]} 26. Bf2 {[%emt 0:05:30]} 1/2-1/2

[Event "3rd Memorial Warakomska 2019"]
[Site "Suwalki"]
[Date "2019.08.07"]
[Round "3.17"]
[White "Zakrzewski, Marek"]
[Black "Tihonov, Jurij"]
[Result "0-1"]
[ECO "B28"]
[WhiteElo "2311"]
[BlackElo "2393"]
[Annotator "ChessBase"]
[PlyCount "78"]
[EventDate "2019.08.05"]
[EventType "swiss"]
[EventCountry "POL"]
[SourceTitle "playchess.com"]
[Source "ChessBase"]
[SourceQuality "1"]
[TimeControl "40/5400+30:1800+30"]

1. e4 {[%emt 0:00:00]} c5 {[%emt 0:00:00]} 2. Nf3 {[%emt 0:00:00]} a6 {[%emt 0:00:14]} 3. c4 {[%emt 0:05:07]} e6 {[%emt 0:00:06]} 4. d4 {[%emt 0:00:24]} cxd4 {[%emt 0:00:07]} 5. Nxd4 {[%emt 0:00:07]} Nf6 {[%emt 0:00:07]} 6. Nc3 {[%emt 0:00:16]} Qc7 {[%emt 0:01:24]} 7. a3 {[%emt 0:00:38]} b6 {[%emt 0:00:05]} 8. Be3 {[%emt 0:00:17]} Bb7 {[%emt 0:00:04]} 9. f3 {[%emt 0:00:20]} Be7 {[%emt 0:00:25]} 10. Rc1 {[%emt 0:00:44]} d6 {[%emt 0:00:37]} 11. Be2 {[%emt 0:00:11]} O-O {[%emt 0:00:07]} 12. O-O {[%emt 0:00:15]} Nbd7 {[%emt 0:00:02]} 13. b4 {[%emt 0:01:05]} Rac8 {[%emt 0:00:05]} 14. Qd2 {[%emt 0:00:51]} Qb8 {[%emt 0:00:06]} 15. Rc2 {[%emt 0:05:33]} Rfe8 {[%emt 0:08:55]} 16. Rfc1 {[%emt 0:02:38]} Bd8 {[%emt 0:02:53]} 17. Kh1 {[%emt 0:00:56]} Bc7 {[%emt 0:00:05]} 18. g3 {[%emt 0:29:44]} Ne5 {[%emt 0:20:27]} 19. Kg1 {[%emt 0:06:53]} h5 {[%emt 0:01:41]} 20. Bf4 {[%emt 0:16:53]} Ng6 {[%emt 0:03:55]} 21. Bg5 {[%emt 0:04:41]} Nh7 {[%emt 0:18:39]} 22. Be3 {[%emt 0:01:04]} h4 {[%emt 0:00:47]} 23. f4 {[%emt 0:04:21]} Nf6 {[%emt 0:02:46]} 24. Bf3 {[%emt 0:04:18]} Qa8 {[%emt 0:08:04]} 25. Qg2 {[%emt 0:00:45]} Bd8 {[%emt 0:01:32]} 26. e5 {[%emt 0:05:01]} Bxf3 {[%emt 0:00:20]} 27. Nxf3 {[%emt 0:00:29]} dxe5 {[%emt 0:11:57]} 28. Nxe5 {[%emt 0:03:30]} Qxg2+ {[%emt 0:01:59]} 29. Kxg2 {[%emt 0:00:05]} Nxe5 {[%emt 0:00:56]} 30. fxe5 {[%emt 0:00:07]} Ng4 {[%emt 0:00:13]} 31. Bd4 {[%emt 0:02:27]} Bg5 {[%emt 0:02:50]} 32. Re1 {[%emt 0:01:34]} Rxc4 {[%emt 0:00:23]} 33. Bxb6 {[%emt 0:00:07]} Rec8 {[%emt 0:00:27]} 34. Bc5 {[%emt 0:00:12]} R8xc5 {[%emt 0:01:38]} 35. bxc5 {[%emt 0:00:07]} Ne3+ {[%emt 0:00:04]} 36. Rxe3 {[%emt 0:00:11]} Bxe3 {[%emt 0:00:05]} 37. Kf3 {[%emt 0:01:45]} Bd4 {[%emt 0:00:48]} 38. c6 {[%emt 0:00:46]} Rxc6 {[%emt 0:01:09]} 39. Ke4 {[%emt 0:00:07]} Rxc3 {[%emt 0:00:21]} 0-1